Cogmind - Beta 16 @@@ ROGUE MODE // 2025.11.11 @ 19:39:11 Player: Byrd Result: Self-destructed Performance ------------- Evolutions (1) 500 Regions Visited (2) 400 Robots Destroyed (30) 150 Value Destroyed (643) 643 Prototype IDs (0) 0 Alien Tech Used (0) 0 Bonus (0) 0 TOTAL SCORE: 1693 Bonus ------- None Cogmind --------- Core Integrity 202/400 Matter 300/300 Energy 6/100 System Corruption 0% Temperature Cool (0) Movement Walking (130) Location -9/Materials Parts ------- > --- POWER (1) -------- (None) > --- PROPULSION (3) --- Titanium Leg Titanium Leg Titanium Leg > --- UTILITY (3) ------ High-capacity Storage Unit Advanced Weight Redist. System > --- WEAPON (2) ------- Great Maul Great Maul > --- INVENTORY (20) --- Titanium Leg Large Storage Unit Advanced Weight Redist. System Assault Rifle Assault Rifle Heavy Assault Rifle Improved Light Cannon Mining Claw Peak State ------------ > --- POWER ------------ (None) > --- PROPULSION ------- Titanium Leg Titanium Leg Titanium Leg > --- UTILITY ---------- High-capacity Storage Unit Advanced Weight Redist. System > --- WEAPON ----------- Great Maul Great Maul > --- INVENTORY -------- Titanium Leg Large Storage Unit Advanced Weight Redist. System Assault Rifle Assault Rifle Heavy Assault Rifle Improved Light Cannon Mining Claw [Rating: 20] Favorites ----------- Power Ion Engine Engine Ion Engine Propulsion Titanium Leg Treads Light Treads Leg Titanium Leg Utility Small Matter Pod Device Improved Terrain Scanner Storage Small Matter Pod Weapon Great Maul Energy Gun EM Pulse Gun Ballistic Gun Light Assault Rifle Ballistic Cannon Improved Light Cannon Launcher Grenade Launcher Impact Weapon Great Maul Slashing Weapon Mining Claw Build | -11 -10 -9 ------- Run | Yrd Mat Mat Slots Evolved 2 | . . 2 Power . | . . . Propulsion 1 | . . 1 Utility 1 | . . 1 Weapon . | . . . Parts Attached 32 | 7 9 16 Power 5 | 1 2 2 Engine 5 | 1 2 2 Core . | . . . Reactor . | . . . Propulsion 11 | 2 2 7 Treads 1 | . . 1 Leg 10 | 2 2 6 Wheel . | . . . Hover . | . . . Flight . | . . . Utility 5 | 2 1 2 Device 3 | 1 . 2 Storage 2 | 1 1 . Processor . | . . . Hackware . | . . . Protection . | . . . Artifact . | . . . Weapon 11 | 2 4 5 Energy Gun 1 | 1 . . Energy Cannon . | . . . Ballistic Gun 4 | 1 2 1 Ballistic Cannon 1 | . . 1 Launcher 1 | . . 1 Special Weapon . | . . . Impact Weapon 3 | . 1 2 Slashing Weapon 1 | . 1 . Piercing Weapon . | . . . Special Melee Weapon . | . . . Unidentified Prototypes . | . . . Parts Lost 15 | 1 3 11 Power 5 | . 2 3 Propulsion 4 | . . 4 Utility 3 | . . 3 Weapon 3 | 1 1 1 Highest Loss Streak 5 | 1 2 5 To Critical Strikes 1 | . . 1 Average Backups 4 | 2 3 6 Power . | . . . Propulsion 1 | 1 1 . Utility 1 | . 1 1 Weapon 2 | . . 3 Tool/Special . | . . . Unused Backups 7 | . 1 6 Power . | . . . Propulsion 3 | . 1 2 Utility 2 | . . 2 Weapon 2 | . . 2 Tool/Special . | . . . Average Slot Usage (%) 75 | . 92 65 Engine 7 | . 13 3 Leg 25 | . 28 24 Device 8 | . 14 4 Storage 11 | . 14 9 Ballistic Gun 10 | . 11 9 Impact Weapon 8 | . 6 9 Slashing Weapon 1 | . 2 . Peak Build Rating 20 | 8 11 20 Average Rating 11 | 4 9 13 On Entrance 6 | . 8 11 Avg Prop Armor Cover (%) . | . . . Naked Turns . | . . . Heaviest Build 48 | 8 11 48 Greatest Support 60 | 20 26 60 Greatest Overweight (x) 1 | . . 1 Average Overweight (x) . | . . . Largest Inventory Capacity 20 | 5 20 20 Average Capacity 9 | 5 5 13 Most Carried 8 | 4 5 8 Average Carried 4 | 2 3 6 Final Capacity 20 | 5 5 20 Final Carried 8 | 2 5 8 Class Distribution -------------------- 100% | Mutant Dominant Class ---------------- Mutant | -10/Materials Mutant | -9/Materials Resources | -11 -10 -9 ----------- Run | Yrd Mat Mat Matter Collected 781 | 335 136 310 Remotely . | . . . Salvage Created 902 | 89 116 697 Parts 33 | 6 4 23 Haulers Intercepted 1 | . . 1 Recyclers Shooed 3 | . . 3 Parts Field Recycled . | . . . Retrieved Matter . | . . . Parts Self-Destructed . | . . . Prevented . | . . . Parts Restored . | . . . Kills | -11 -10 -9 ------- Run | Yrd Mat Mat Combat Hostiles Destroyed 19 | 1 2 16 Melee 6 | . 1 5 Guns 6 | 1 1 4 Cannons 1 | . . 1 AOE 5 | . . 5 Classes Destroyed 10 | 3 1 6 Worker 5 | 1 . 4 Builder 1 | . 1 . Tunneler 1 | 1 . . Hauler 1 | . . 1 Recycler 2 | . . 2 Watcher 1 | . . 1 Swarmer 5 | . . 5 Grunt 9 | 1 2 6 Duelist 1 | . . 1 Sentry 4 | . . 4 Best Kill Streak 6 | 2 2 6 Combat Bots Only 3 | 1 2 3 Max Kills in Single Turn 2 | 1 1 2 Gunslinging . | . . . Exploded 2 | . . 2 Melee 1 | . 1 1 Uniques/NPCs Destroyed . | . . . Combat | -11 -10 -9 -------- Run | Yrd Mat Mat Hostile Shots Fired 196 | 12 32 152 Missed 55 | 4 6 45 Hits 141 | 8 26 107 Melee 10 | . . 10 Projectile 131 | 8 26 97 Critical Strikes 5 | . 1 4 Damage Taken 1886 | 85 348 1453 Core 279 | . 81 198 Absorbed by Shields . | . . . Regen/Repaired (Parts) 20 | . 20 . Core Remaining (%) 83 | 100 67 . Volleys Fired 71 | 10 17 44 Largest 2 | 2 1 2 Hottest 60 | 60 20 53 Shots Fired 107 | 18 17 72 Gun 94 | 18 17 59 Cannon 7 | . . 7 Launcher 6 | . . 6 Special . | . . . Kinetic 93 | 10 17 66 Thermal . | . . . Explosive 6 | . . 6 Electromagnetic 8 | 8 . . Robot Hit Streak 9 | 3 9 7 Robot Miss Streak 3 | 3 1 3 Penetration Max . | . . . Secondary Targets . | . . . Shots Hit Robots 93 | 9 18 66 Core Hits 34 | 4 4 26 Critical Kills 3 | . . 3 Critical Parts Destroyed 8 | . . 8 Critical Strikes 12 | . . 12 Smash 12 | . . 12 Melee Attacks 39 | . 4 35 Impact 36 | . 1 35 Slashing 3 | . 3 . Piercing . | . . . Sneak Attacks 7 | . 1 6 Combat Hostiles . | . . . Follow-up Attacks 1 | . . 1 Damage Inflicted 2597 | 177 312 2108 Guns 649 | 138 180 331 Cannons 84 | . . 84 Explosions 492 | 39 . 453 Melee 1371 | . 132 1239 Ramming 1 | . . 1 Kinetic 708 | 113 180 415 Thermal 39 | 39 . . Explosive 453 | . . 453 Electromagnetic 25 | 25 . . Impact 1302 | . 63 1239 Slashing 69 | . 69 . Piercing . | . . . Highest Corruption . | . . . Average Corruption . | . . . Corruption Purged . | . . . Corruption Blocked . | . . . Overload Shots . | . . . Overflow Damage 685 | . 43 642 Projectiles . | . . . Explosions 35 | . . 35 Melee 650 | . 43 607 Knockbacks 2 | . . 2 Impact 2 | . . 2 Kinetic . | . . . Secondary . | . . . Self-Inflicted Damage 16 | . . 16 Shots 1 | . . 1 Rammed . | . . . Targets Rammed 1 | . . 1 Kicked 1 | . . 1 Crushed . | . . . Highest Temperature 36 | 36 9 15 Average Temperature 10 | 18 9 5 Received Heat Transfer 675 | 48 219 408 Siege Activations . | . . . Martial Activations . | . . . Shielding Activations . | . . . Robots Disrupted . | . . . Combat Hostiles . | . . . Robots Corrupted 6 | . 1 5 Combat Hostiles 1 | . . 1 Parts Fried 9 | . . 9 Impact Corruptions 20 | . 2 18 Robots Melted . | . . . Combat Hostiles . | . . . Parts Melted . | . . . Heat Transferred 50 | 50 . . Parts Sabotaged . | . . . Parts Stolen . | . . . Parts Stripped . | . . . Power Chain Reactions 1 | 1 . . Alert | -11 -10 -9 ------- Run | Yrd Mat Mat Maximum Alert Level . | . . . Low Security (%) 100 | 100 100 100 Level 1 . | . . . Level 2 . | . . . Level 3 . | . . . Level 4 . | . . . Level 5 . | . . . High Security . | . . . Max Security . | . . . Peak Influence 99 | 20 30 99 Initial 6 | . 6 . Average 14 | 2 3 22 Influence Increases 622 | 30 111 481 Destroy 0b10 Robot/C 380 | 20 40 320 Destroy 0b10 Robot/NC 55 | 10 5 40 Destroy Leader 84 | . 10 74 Successful Hack 30 | . 26 4 Destroy Structure 28 | . . 28 Lose Combat Pursuer 45 | . 30 15 Influence Decreases 540 | 20 121 399 Entered New Map 4 | . 4 . Time Decay 441 | 15 97 329 Lost Part 95 | 5 20 70 Squads Dispatched 2 | . 1 1 Investigation 2 | . 1 1 Extermination . | . . . Reinforcement . | . . . Assault . | . . . Garrison . | . . . Intercept . | . . . Searches Triggered . | . . . Construction Impeded . | . . . Haulers Reinforced . | . . . Active Scanning Responses . | . . . Cargo Convoy Interrupts . | . . . Stealth | -11 -10 -9 --------- Run | Yrd Mat Mat Distress Signals 2 | . 2 . Communications Jammed . | . . . Distress Signals . | . . . Times Spotted 30 | 1 7 22 Peak Tracking Total 5 | 1 4 5 Tactical Retreats 2 | . 1 1 Traps | -11 -10 -9 ------- Run | Yrd Mat Mat Traps Triggered . | . . . Indirectly . | . . . Trap Hack Attempts . | . . . Triggered . | . . . Disarmed . | . . . Reprogrammed . | . . . Reused . | . . . Traps Extracted . | . . . Installed . | . . . Triggered . | . . . Machines | -11 -10 -9 ---------- Run | Yrd Mat Mat Machines Disabled . | . . . Max in Single Turn . | . . . Machines Repaired . | . . . Machines Dismantled . | . . . Machines Sabotaged . | . . . Overloaded Fab Kills . | . . . Hacking | -11 -10 -9 --------- Run | Yrd Mat Mat Machines Accessed 11 | . 6 5 Terminals 7 | . 4 3 Fabricators . | . . . Repair Stations 1 | . 1 . Recycling Units 1 | . 1 . Scanalyzers 2 | . . 2 Garrison Access . | . . . Total Hacks 31 | . 15 16 Successful 19 | . 13 6 Failed 12 | . 2 10 Catastrophic . | . . . Database Lockouts . | . . . Manual . | . . . Terminals 19 | . 8 11 Fabricators . | . . . Repair Stations 3 | . 3 . Recycling Units 4 | . 4 . Scanalyzers 5 | . . 5 Garrison Access . | . . . Terminal Hacks 10 | . 7 3 Record 1 | . 1 . Robot Analysis 2 | . 2 . Alert Level 2 | . 1 1 Dispatch Records 1 | . . 1 Patrol Status 1 | . 1 . Hauler Manifests 1 | . 1 . Zone Layout 2 | . 1 1 Fabricator Hacks . | . . . Repair Station Hacks 3 | . 3 . Scan Component 1 | . 1 . Repair 1 | . 1 . Refit 1 | . 1 . Recycling Unit Hacks 3 | . 3 . Recycle Component 1 | . 1 . Process 1 | . 1 . Retrieve Matter 1 | . 1 . Scanalyzer 3 | . . 3 Insert Component 1 | . . 1 Analyze 1 | . . 1 Retrieve Study 1 | . . 1 Garrison Access Hacks . | . . . Unauthorized Hacks . | . . . Terminals . | . . . Fabricators . | . . . Repair Stations . | . . . Recycling Units . | . . . Scanalyzers . | . . . Garrison Access . | . . . Data Cores Recovered . | . . . Used . | . . . Hacking Detections 7 | . 4 3 Full Trace Events 2 | . 1 1 Feedback Events . | . . . Feedback Blocked . | . . . Robot Schematics Acquired . | . . . Robots Built . | . . . Authchips . | . . . Time . | . . . Total Robot Build Rating . | . . . Part Schematics Acquired 1 | . . 1 Parts Built . | . . . Authchips . | . . . Time . | . . . Total Part Build Rating . | . . . Part Studies Acquired . | . . . Parts Repaired 1 | . 1 . Time 26 | . 26 . Parts Recycled 1 | . 1 . Recycled Matter 170 | . 170 . Retrieved Matter 170 | . 170 . Retrieved Components . | . . . Parts Scanalyzed 1 | . . 1 Part Schematics Acquired 1 | . . 1 Parts Damaged . | . . . Bothacking | -11 -10 -9 ------------ Run | Yrd Mat Mat Used RIF Installer . | . . . Robots Hacked . | . . . Non-combat . | . . . Combat . | . . . Robot Hacks Applied . | . . . Relay Couplers Released . | . . . Fabnet Peak Effective % . | . . . Robots Rewired . | . . . Allies Hacked . | . . . Hacks Repelled . | . . . Allies | -11 -10 -9 -------- Run | Yrd Mat Mat Total Allies . | . . . Largest Group . | . . . Highest-Rated Group . | . . . Highest-Rated Ally . | . . . Total Orders . | . . . Ally Attacks . | . . . Total Damage . | . . . Kills . | . . . Allies Corrupted . | . . . Allies Melted . | . . . Intel | -11 -10 -9 ------- Run | Yrd Mat Mat Active Infowar (turns) 843 | 5 739 99 Sensors 48 | . . 48 Terrain 843 | 5 739 99 Robot Analysis Total 2 | . 2 . Derelict Logs Recovered . | . . . Drone Launches . | . . . Drone Recoveries . | . . . Exploration | -11 -10 -9 ------------- Run | Yrd Mat Mat Turns Passed 2213 | 186 741 1286 Spaces Moved 1242 | 133 543 566 Core 37 | 27 . 10 Treads 87 | . . 87 Legs 1118 | 106 543 469 Wheels . | . . . Hover . | . . . Flight . | . . . Fastest Speed 50 | 50 120 100 Average Speed 123 | 105 120 130 Slowest Speed 160 | 120 120 160 Overloaded Moves . | . . . Propulsion Burnouts . | . . . Robots Hopped . | . . . Potential Cave-ins . | . . . Cave-ins Triggered . | . . . Exploration Rate (%) 34 | 7 62 35 Regions Visited 2 Branch Regions . Pre-discovered Areas . | . . . Known Exits Taken . | . . . Unknown Exits Taken 2 | 1 1 . Scrap Searched . | . . . Spaces Dug . | . . . Terrain Destroyed 29 | 2 . 27 Melee . | . . . Projectile . | . . . AOE 29 | 2 . 27 Terrain Rammed . | . . . Walls Destroyed . | . . . Machines Disabled . | . . . Actions | -11 -10 -9 --------- Run | Yrd Mat Mat Total 1750 | 160 607 983 Wait 307 | 2 20 285 Move 1240 | 132 542 566 Hop . | . . . Pick Up 42 | 9 10 23 Fast Attach . | . . . Attach 24 | 7 5 12 Detach 1 | . 1 . Swap 18 | . 6 12 Drop 10 | . 2 8 Fire 71 | 10 17 44 Melee 36 | . 4 32 Ram . | . . . Kick 1 | . . 1 Crush . | . . . Escape Stasis . | . . . Rewire . | . . . Trap . | . . . Miscellaneous . | . . . Route ------- -11/Scrapyard -10/Materials (discovered 3 exits: *Mat x2 / [*Min]) -9/Materials (discovered 3 exits: [*Mat x2] / [*Min]) History --------- Turn | Location | Event 2 | -11/Scrapyard | Met Revision 17 128 | -11/Scrapyard | Discovered new exit (range 8) 187 | -11/Scrapyard | Entered Materials 317 | -10/Materials | Build established: Mutant 332 | -10/Materials | Repaired Lgt. Ion Engine 650 | -10/Materials | Discovered new exit (range 13) 784 | -10/Materials | Discovered new exit (range 8) 856 | -10/Materials | Discovered new exit (range 16) 928 | -10/Materials | Entered another Materials area 928 | -9/Materials | Evolved 2 slots: Propulsion x1, Utility x1 1085 | -9/Materials | Lost 5 parts (1p3n1u) 1142 | -9/Materials | Discovered new exit (range 15) 1363 | -9/Materials | Discovered new exit (range 16) 1417 | -9/Materials | Lost 4 parts (1p1n1u1w) 1742 | -9/Materials | Discovered new exit (range 16) 2214 | -9/Materials | Self-destructed Last Messages --------------- G-34 Mercenary IFF system glitched. G-34 Mercenary suffers critical hit (Smash). Heat Sink fried. G-34 Mercenary destroyed. K-01 Serf collects debris. Sneak attack on K-01 Serf. Destroyed Sml. Matter Pod. Destroyed Lgt. Ion Engine. K-01 Serf system corrupted by crushing effect. K-01 Serf system terminally corrupted. Wheel fried. G-34 Mercenary suffers critical hit (Smash). Destroyed Aluminum Leg. G-34 Mercenary system corrupted by crushing effect. Destroyed Ion Engine. G-34 Mercenary system corrupted by crushing effect. G-34 Mercenary destroyed. Connecting with Terminal... ALERT: Suspicious activity at Terminal M007. Dispatching Investigation squad. Map ----- +----------------------------------------------------+ | ???????????????????????????????????????????????? | | ????????????????????????????????????????????# ?? | | ????????????????????????????????????????????# ? | | ????????????????????????????????????######??? | | ????????????????????????????????????# ????? | | ????????????????????????????????????# ??????? | | ????????????????????????????????????+ ??????? | | ????????????????????????????????????? ??????# | | ?????????????????????????????????????? ??????# | | ??????????????????????????????????????# #??????# | | ????????????????????????????????#######+###????# | | ?????????????????########???????# #????# | | ?????????????????#!! #???????# """"""" ###### | | ?????????????????#!! //#???????# """"""" + + | | ?????????????????# #???????# """"""" ###### | | ??????????####+### ######### """"""" #????# | | ??????????# + """"""" #????? | | ??????????# < # #????? | | ??????????# # #????? | | ??????????###### ##+######### ######+####????? | | ???????????????# # #?# #### ##### | | ???????????????# # """"" #?#% | | ???????????????# # """"" ###% T | | ???????????????# # """"" + % | | ???????????????# # ####%### ##### | | ???????????????# # @ #??#[#?#######?????# | | ???????????????# # ! "T" #??# #?????????????? | | ???????????????# #!! """ #??# #?????????????? | | ???????????????# #! #??# #?????????????? | | ???????????????# ######## #??# #?????????????? | | ???????????????#^^ #??????######+###???????????? | | ???????????????# ^ #?????????# %!#???????????? | | ???????????????# #?????????# [ ]!#???????????? | | ???????????????# #?????????# ]]#???????????? | | ???????????????# #?????????# """]#???????????? | | ???????????????# #?????????# """%#???????????? | | ???????????????# #?????????# """]#???????????? | | ???????????????# #?????????# !%]#???????????? | | ???????????????# #######+######+#######??##### | | ???????????????# #??# | | ???????????????+ #??# | | ???????????????# #??# | | ???????????????####+################# #??# | | ???????????????# #??????????# #??# | | ???????????????# =[[ #??????????# #??# | | ???????????????# = #??????????# #######+ | | ???????????????# = ############ % | | ???????????????# + = | | ???????????????# ############ % | | ???????????????# #????????######+### | +----------------------------------------------------+ Best States ------------- Heat Dissipation 28 Energy Generation 10 Energy Capacity 250 Matter Stores 350 Matter Capacity 350 Sight Range 16 Robot Scan Range 14 Terrain Scan Range 16 Terrain Scan Density 10 Additional Mass Support 9 Evasion (%) 55 Recoil Reduction 1 Item Schematics ----------------- Assault Rifle | -9/Materials | Scanalyzed Robot Schematics ------------------ None Fabricated ------------ Nothing Repaired ---------- Lgt. Ion Engine | 50% | -10/Materials Studied --------- None Alien Tech Used ----------------- None Achievements -------------- Fitting Room Novice Programmer Overwhelming Part-time Mechanic Power Corrupts Challenges ------------ None Game ------ Seed NeutrinoCannonExpander Manual? 0 Play Time 00:30:00 Cumulative 1.5 hours Start 2025.11.11 @ 19:06:01 End 2025.11.11 @ 19:39:11 Sessions 1 Manual Loads 0 Difficulty Rogue Special Mode None Game No. 3 Rogue 3 Adventurer 0 Explorer 0 Win Type - Total 0 Types 0/0/0/0/0/0/0/0/0/0 Lore% 0 Gallery% 3 Achievement% 5 Wizard Run 0 Options --------- Layout 1 ASCII 0 Keyboard 0 Movement Arrows Keybinds 0 Fullscreen 2 Font 32/SmallcapsGlow Map View 77x35 Zoom Use 0% Tactical HUD 0 Map Filters NONE Filters NONE Steam 1 RUN: 1694688f-777f-4acb-9a8f-075f1ff9fb6a